bitfinex-derivatives/quotes_BTCF0:USTF0_20250620
["timestamp","ask_amount","ask_price","bid_price","bid_amount"]
[1750431448844,0.5539072,104100.0,104090.0,1.1931101]
[1750431449045,0.6453072,104100.0,104090.0,1.1931101]
[1750431449248,0.2845072,104100.0,104090.0,1.1927101]
[1750431449544,0.2845072,104100.0,104090.0,1.1931101]
[1750431449748,0.2388072,104100.0,104090.0,1.1931101]
[1750431449950,0.1931072,104100.0,104090.0,1.88362399]
[1750431450543,0.1931072,104100.0,104090.0,1.52282399]
[1750431450743,0.1931072,104100.0,104090.0,1.5339101]
[1750431450942,0.1931072,104100.0,104090.0,1.1731101]
[1750431451148,0.001,104100.0,104090.0,1.5339101]
[1750431451651,0.5539072,104100.0,104090.0,0.3501901]
[1750431451844,1.01361309,104100.0,104090.0,1.0856101]
[1750431452150,1.01361309,104100.0,104090.0,1.0860101]
[1750431452450,1.01361309,104100.0,104090.0,0.8938844]
[1750431452653,1.01361309,104100.0,104090.0,1.08601]
[1750431453450,0.65281309,104100.0,104090.0,1.08601]
[1750431453651,0.001,104100.0,104090.0,1.38520389]
[1750431453957,0.001,104100.0,104090.0,2.20700389]
[1750431454154,0.1931072,104100.0,104090.0,1.85557]
[1750431454353,0.56681309,104100.0,104090.0,0.25609]
[1750431454554,1.04049719,104100.0,104090.0,1.07693]
[1750431454757,1.04049719,104100.0,104090.0,1.07357]
[1750431454758,0.67869719,104100.0,104090.0,1.07357]
[1750431454958,0.67869719,104100.0,104090.0,1.07297]
[1750431455159,0.67869719,104100.0,104090.0,1.07697]
[1750431455458,0.67969719,104100.0,104090.0,1.44077]
[1750431455757,0.65681309,104100.0,104090.0,1.43657]
[1750431455958,0.65681309,104100.0,104090.0,1.43957]
[1750431456155,0.65581309,104100.0,104090.0,1.43657]
[1750431456458,0.67870623,104100.0,104090.0,1.43657]
[1750431456652,0.552898,104110.0,104100.0,0.1921072]
[1750431456653,0.55289,104110.0,104100.0,0.1921072]
[1750431456859,0.39659944,104110.0,104100.0,0.1921072]
[1750431457056,0.75444335,104120.0,104110.0,0.1920888]
[1750431457258,1.15104398,104120.0,104110.0,0.8414888]
[1750431458155,1.15104398,104120.0,104110.0,0.6494]
[1750431458457,1.15104398,104120.0,104110.0,0.82024]
[1750431458458,0.12841239,104120.0,104110.0,0.82024]
[1750431458657,0.01751765,104120.0,104110.0,1.72284259]
[1750431458858,0.3618,104150.0,104110.0,3.24196989]
[1750431459157,0.193015,104150.0,104140.0,0.54174739]
[1750431459351,0.193015,104150.0,104140.0,1.0325935]
[1750431459547,0.193015,104150.0,104140.0,1.0760935]
[1750431459751,0.0882,104150.0,104140.0,1.0760935]
[1750431459952,0.280215,104150.0,104140.0,1.0760935]
[1750431460253,0.0882,104150.0,104140.0,1.4368935]
[1750431460458,0.0882,104150.0,104140.0,1.08400616]
[1750431460653,0.001,104150.0,104140.0,1.08400616]
[1750431460854,0.001,104150.0,104140.0,1.44480616]
[1750431461050,0.001,104150.0,104140.0,1.79452005]
[1750431461248,0.002,104150.0,104140.0,1.79652005]
[1750431461959,0.554815,104150.0,104140.0,0.27044616]
[1750431462149,0.92852089,104150.0,104140.0,1.0389535]
[1750431462352,1.01702089,104150.0,104140.0,1.0393535]
[1750431462962,0.65622089,104150.0,104140.0,1.0393535]
[1750431463660,1.7128178,104150.0,104140.0,0.19824]
[1750431463861,1.9128178,104150.0,104140.0,0.17824]
[1750431464066,1.9128178,104150.0,104140.0,0.0074]
[1750431464362,0.1920334,104140.0,104130.0,0.18845558]
[1750431464562,0.1920334,104140.0,104130.0,0.17084]
[1750431464563,1.88335318,104140.0,104130.0,0.17084]
[1750431465157,1.90335318,104140.0,104130.0,0.17084]
[1750431465560,1.90335318,104140.0,104130.0,0.17124]
[1750431465760,1.69335318,104140.0,104130.0,0.17124]
[1750431466056,1.50663929,104140.0,104130.0,0.17124]
[1750431466453,1.50663929,104140.0,104130.0,0.3632919]
[1750431466654,0.97663929,104140.0,104130.0,0.1924519]
[1750431466859,1.53863929,104140.0,104130.0,0.3632519]
[1750431467064,1.53863929,104140.0,104130.0,0.1712]
[1750431467257,0.97863929,104140.0,104130.0,0.3632519]
[1750431467452,1.02483929,104140.0,104130.0,0.3632519]
[1750431467656,0.82780589,104140.0,104130.0,0.1924519]
[1750431467864,1.02183929,104140.0,104130.0,0.17128]
[1750431468162,1.02183929,104140.0,104130.0,1.0120119]
[1750431468354,1.56155318,104140.0,104130.0,0.001]
[1750431468559,0.1920703,104120.0,104110.0,0.18826488]
[1750431468862,2.18709008,104120.0,104110.0,0.18746488]
[1750431469068,2.23289008,104120.0,104110.0,0.01758488]
[1750431469255,0.1920888,104110.0,104100.0,0.16988]
[1750431469458,1.81912757,104110.0,104100.0,0.16988]
[1750431469761,1.81912757,104110.0,104090.0,0.21814742]
[1750431469762,0.1921072,104100.0,104090.0,0.21814742]
[1750431470061,1.83914597,104100.0,104090.0,0.04746742]
[1750431470258,1.83914618,104100.0,104090.0,0.04746742]
[1750431470456,1.48943229,104100.0,104090.0,0.23999312]
[1750431470763,0.92661309,104100.0,104090.0,0.40987312]
[1750431470965,0.92661309,104100.0,104090.0,0.40947312]
[1750431471467,0.92661309,104100.0,104090.0,0.40987312]
[1750431471670,0.97461309,104100.0,104090.0,0.41087312]
[1750431472057,0.97161309,104100.0,104090.0,0.40987312]
[1750431472261,0.61181309,104100.0,104090.0,0.41087312]
[1750431472463,0.1931072,104100.0,104090.0,0.50707312]
[1750431473067,0.1931072,104100.0,104090.0,0.34019312]
[1750431473367,0.92761309,104100.0,104090.0,0.88050742]
[1750431473573,1.39401309,104100.0,104090.0,0.06186742]
[1750431473757,1.85372698,104100.0,104090.0,0.87710742]
[1750431474072,1.85372698,104100.0,104090.0,0.87810742]
[1750431474571,1.85372698,104100.0,104090.0,0.04986742]
[1750431474772,1.85372698,104100.0,104090.0,0.04946742]
[1750431474972,1.85372698,104100.0,104090.0,0.21978742]
[1750431475171,1.85372698,104100.0,104090.0,0.04986742]
[1750431475376,2.04586298,104100.0,104090.0,0.032]
[1750431475567,1.85372698,104100.0,104090.0,0.0324]
[1750431475763,1.85372698,104100.0,104090.0,0.032]
[1750431475971,1.95490016,104100.0,104090.0,0.0324]
[1750431476468,0.1921257,104090.0,104080.0,0.19992]
[1750431476680,1.85084548,104090.0,104080.0,0.19992]
[1750431477063,1.85084548,104090.0,104080.0,0.20032]
[1750431477370,1.85084548,104090.0,104080.0,0.19992]
[1750431477570,1.85084548,104090.0,104080.0,0.20332]
[1750431478074,1.85184548,104090.0,104080.0,0.20632]
[1750431478577,1.88184548,104090.0,104080.0,0.20632]
[1750431478867,1.88184548,104090.0,104080.0,0.20332]
[1750431479074,1.88184548,104090.0,104080.0,0.20432]
[1750431479371,1.88184548,104090.0,104080.0,0.0344]
[1750431479579,1.88184548,104090.0,104080.0,0.0324]
[1750431479788,1.88184548,104090.0,104080.0,0.2245441]
[1750431479789,0.9920257,104090.0,104080.0,0.2245441]
[1750431480069,0.3618,104090.0,104080.0,0.65042729]
[1750431480275,0.001,104090.0,104080.0,1.09762729]
[1750431480664,0.001,104090.0,104080.0,0.3871134]
[1750431480866,0.001,104090.0,104080.0,0.7479134]
[1750431481067,0.1931257,104090.0,104080.0,1.41762729]
[1750431481267,0.5539257,104090.0,104080.0,0.6071134]
[1750431481462,0.92763159,104090.0,104080.0,1.2058734]
[1750431481677,1.01393159,104090.0,104080.0,1.1190734]
[1750431481974,1.01393159,104090.0,104080.0,0.3007134]
[1750431482277,1.01393159,104090.0,104080.0,1.1194734]
[1750431482472,0.97073159,104090.0,104080.0,1.1194734]
[1750431482674,0.97073159,104090.0,104080.0,1.2105734]
[1750431482873,0.97073159,104090.0,104080.0,1.2101734]
[1750431483175,0.5539257,104090.0,104080.0,1.2105734]
[1750431483478,0.001,104090.0,104080.0,2.28108729]
[1750431483973,0.5539264,104090.0,104080.0,1.2404942]
[1750431484173,0.2392264,104090.0,104080.0,1.2900942]
[1750431484374,0.0471,104090.0,104080.0,1.2900942]
[1750431484578,0.001,104090.0,104080.0,1.63980809]
[1750431484875,0.001,104090.0,104080.0,1.6508942]
[1750431485075,0.001,104090.0,104080.0,2.14316009]
[1750431485274,0.001,104090.0,104080.0,2.50316009]
[1750431485478,0.001,104090.0,104080.0,2.75316009]
[1750431489774,0.001,104090.0,104080.0,2.81003577]
[1750431489977,1e-07,104090.0,104080.0,2.81003577]
[1750431491678,1e-07,104090.0,104080.0,2.56100809]
[1750431491883,0.01604179,104130.0,104120.0,0.1920715]
[1750431492085,0.5529504,104140.0,104130.0,0.1920531]
[1750431492378,0.5529504,104140.0,104110.0,0.11022464]
[1750431492379,0.1920715,104120.0,104110.0,0.11022464]
[1750431492575,0.92657749,104120.0,104110.0,0.25651464]
[1750431492782,1.47943858,104120.0,104110.0,1.01057]
[1750431492982,1.47943858,104120.0,104110.0,0.81888]
[1750431493180,1.28736708,104120.0,104100.0,0.239107]
[1750431493377,1.29781689,104120.0,104110.0,0.81888]
[1750431493682,0.56579599,104110.0,104100.0,0.2871313]
[1750431493875,0.60959599,104110.0,104100.0,1.1055713]
[1750431494383,0.60959599,104110.0,104100.0,1.59738409]
[1750431494577,0.60959599,104110.0,104100.0,0.3302313]
[1750431494774,0.60959599,104110.0,104100.0,1.1486713]
[1750431495085,0.56579599,104110.0,104100.0,1.1486713]
[1750431495284,0.37470599,104110.0,104100.0,1.1496713]
[1750431495476,0.56679599,104110.0,104100.0,1.1496713]
[1750431495675,0.61059599,104110.0,104100.0,1.1496713]
[1750431495977,0.001,104110.0,104100.0,2.42941557]
[1750431497177,0.001,104110.0,104100.0,2.08004696]
[1750431497376,0.001,104110.0,104100.0,2.42941557]
[1750431497774,0.001,104110.0,104100.0,2.45941557]
[1750431497980,0.001,104110.0,104100.0,2.70941557]
[1750431498377,0.06508812,104150.0,104140.0,0.1920348]
[1750431498378,0.66312022,104150.0,104140.0,0.1920348]
[1750431498684,0.01708302,104150.0,104140.0,1.52956341]
[1750431498881,0.01708302,104150.0,104140.0,1.93266341]
[1750431499187,0.01708302,104150.0,104140.0,1.94078596]
[1750431499687,0.01908302,104150.0,104140.0,1.94078596]
[1750431500581,0.03508302,104150.0,104140.0,2.0200913]
[1750431500977,0.02408302,104150.0,104140.0,2.0190913]
[1750431501183,0.02408302,104150.0,104140.0,2.1590913]
[1750431501384,0.02408302,104150.0,104140.0,2.3511313]
[1750431501691,0.02408302,104150.0,104140.0,2.6463313]
[1750431501889,2e-08,104150.0,104140.0,2.6463313]
[1750431502189,0.01569463,104170.0,104160.0,0.1919979]
[1750431502392,0.01569463,104170.0,104160.0,2.04008651]
[1750431502589,0.20767413,104170.0,104160.0,0.6005979]
[1750431502790,1.06041455,104170.0,104160.0,0.0104]
[1750431502983,1.06041455,104170.0,104160.0,1.0103179]
[1750431503184,1.06041455,104170.0,104160.0,1.0099179]
[1750431503488,1.10471455,104170.0,104160.0,0.81832]
[1750431503689,1.97408316,104170.0,104160.0,0.81832]
[1750431503883,2.39608316,104170.0,104160.0,0.81828]
[1750431504087,2.15008316,104170.0,104160.0,0.81928]
[1750431504289,0.1920163,104150.0,104140.0,0.01795218]
[1750431504586,0.1920163,104150.0,104120.0,0.0016]
[1750431504587,0.1920532,104130.0,104120.0,0.0016]
[1750431504784,0.1920716,104120.0,104110.0,0.81776]
[1750431504979,0.6432716,104120.0,104110.0,0.16968]
[1750431505184,0.6432716,104120.0,104110.0,1.0098501]
[1750431505185,1.56697759,104120.0,104110.0,1.0098501]
[1750431505382,1.56697759,104120.0,104110.0,0.81816]
[1750431505591,1.56697759,104120.0,104110.0,0.0004]
[1750431505791,1.18697759,104120.0,104110.0,1.0098501]
[1750431505992,1.01697759,104120.0,104110.0,1.0102501]
[1750431506492,1.33697759,104120.0,104110.0,1.0102501]
[1750431506683,1.33697759,104120.0,104110.0,0.1924901]
[1750431506989,1.33697759,104120.0,104110.0,1.0098101]
[1750431507486,1.33697759,104120.0,104110.0,0.006]
[1750431507487,1.01797759,104120.0,104110.0,0.006]
[1750431507693,1.01797759,104120.0,104110.0,1.0162501]
[1750431507893,0.65717759,104120.0,104110.0,1.0158501]
[1750431508079,0.46510599,104120.0,104110.0,1.0102501]
[1750431508279,0.65617759,104120.0,104110.0,1.0503501]
[1750431508592,0.41690599,104120.0,104110.0,0.96414963]
[1750431508799,0.41690599,104120.0,104110.0,1.00570963]
[1750431508994,0.0432,104120.0,104110.0,1.35907824]
[1750431509187,0.6898948,104130.0,104120.0,0.1920716]
[1750431509387,1.05468349,104130.0,104120.0,0.55861065]
[1750431509583,1.00665919,104130.0,104120.0,0.20924204]
[1750431510493,1.00665919,104130.0,104120.0,0.21024204]
[1750431510993,0.4409,104130.0,104120.0,0.55961065]
[1750431511291,0.0801,104130.0,104120.0,0.96991065]
[1750431511594,0.61687181,104140.0,104130.0,0.1920532]
[1750431511890,0.61687181,104140.0,104130.0,1.0097732]
[1750431511891,1.0721826,104140.0,104130.0,1.0097732]
[1750431512192,0.05541561,104140.0,104130.0,2.05994181]
[1750431512394,0.05821461,104150.0,104140.0,0.1920347]
[1750431512594,0.01601461,104150.0,104140.0,1.24220331]
[1750431512794,0.01601461,104150.0,104140.0,1.32370331]
[1750431513390,0.01601461,104150.0,104140.0,0.6135347]
[1750431513694,0.01601461,104150.0,104140.0,1.3200747]
[1750431513896,0.10001461,104150.0,104140.0,1.3210747]
[1750431514194,0.10001461,104150.0,104140.0,1.3206747]
[1750431514401,1.0245369,104150.0,104140.0,0.2120347]
[1750431514597,1.0265369,104150.0,104140.0,1.0099947]
[1750431514892,0.4737206,104150.0,104140.0,1.0095947]
[1750431515094,1.0265369,104150.0,104140.0,1.0099947]
[1750431515298,1.0245369,104150.0,104140.0,1.0099947]
[1750431515787,0.6637369,104150.0,104140.0,1.0099947]
[1750431515992,1.0245369,104150.0,104140.0,1.0099947]
[1750431516989,0.8325206,104150.0,104140.0,1.0099947]
[1750431517196,0.4717206,104150.0,104140.0,1.0099947]
[1750431517398,1.0245369,104150.0,104140.0,0.2024347]
[1750431517697,0.4717206,104150.0,104140.0,1.0194747]
[1750431517890,0.4717206,104150.0,104140.0,1.0198747]
[1750431517891,1.0245369,104150.0,104140.0,1.0198747]
[1750431518298,1.0245369,104150.0,104140.0,1.0194747]
[1750431518494,0.001,104150.0,104140.0,1.36924331]
[1750431518685,0.001,104150.0,104140.0,2.41838531]
[1750431519190,0.0823,104170.0,104160.0,0.1919978]
[1750431519388,0.0823,104170.0,104160.0,1.3193978]
[1750431519589,0.0823,104170.0,104160.0,1.3591978]
[1750431519796,0.0823,104170.0,104160.0,1.4000978]
[1750431519998,0.45600599,104170.0,104160.0,1.3193578]
[1750431520194,0.81680599,104170.0,104160.0,0.5419978]
[1750431520385,0.82180599,104170.0,104160.0,0.5029978]
[1750431520588,0.82180599,104170.0,104160.0,0.371]
[1750431520589,0.6400794,104170.0,104160.0,0.371]
[1750431520799,1.366154,104170.0,104160.0,0.001]
[1750431520991,1.82984348,104170.0,104160.0,0.81872]
[1750431521190,1.73984348,104170.0,104160.0,0.81832]
[1750431521397,1.50047487,104170.0,104160.0,0.81832]
[1750431521595,1.61984348,104170.0,104160.0,0.81872]
[1750431521898,1.81984348,104170.0,104160.0,0.81872]
[1750431522096,1.38984348,104170.0,104160.0,0.81872]
[1750431522292,1.72984348,104170.0,104160.0,0.81872]
[1750431522492,1.93984348,104170.0,104160.0,1.0107179]
[1750431522796,1.81984348,104170.0,104160.0,0.81864]
[1750431523185,1.81987055,104170.0,104160.0,0.81864]
[1750431523693,1.81987055,104170.0,104160.0,0.001]
[1750431523895,0.56570379,104160.0,104150.0,0.16968]
[1750431524102,1.89972641,104160.0,104150.0,0.10508]
[1750431524397,2.09175041,104160.0,104150.0,0.10508]
[1750431524599,2.09175041,104160.0,104150.0,0.10548]
[1750431524801,2.73927041,104160.0,104150.0,0.10508]
[1750431525100,2.73927041,104160.0,104150.0,0.10548]
[1750431525295,2.74127041,104160.0,104150.0,0.0004]
[1750431525498,0.1920347,104140.0,104130.0,0.8403331]
[1750431525799,2.23755498,104140.0,104130.0,0.16968]
[1750431526000,2.46941098,104140.0,104130.0,0.17008]
[1750431526196,1.92798637,104140.0,104130.0,0.3617331]
[1750431526395,1.92798637,104140.0,104130.0,0.17008]
[1750431526601,2.27735498,104140.0,104130.0,0.3621331]
[1750431526802,2.27735498,104140.0,104130.0,0.0034]
[1750431527306,2.31915498,104140.0,104130.0,0.0034]
[1750431527799,1.97378637,104140.0,104130.0,0.002]
[1750431528100,2.32315498,104140.0,104130.0,0.0024]
[1750431528299,2.51721098,104140.0,104130.0,0.0014]
[1750431528503,0.1920716,104120.0,104110.0,0.17004]
[1750431528699,2.24818875,104120.0,104110.0,0.36133]
[1750431528896,0.19209,104110.0,104100.0,0.03]
[1750431529098,1.87035516,104110.0,104100.0,0.19924]
[1750431529405,1.87035516,104110.0,104090.0,6e-08]
[1750431529406,0.1921085,104100.0,104090.0,6e-08]
[1750431529701,0.58309702,104090.0,104080.0,6e-08]
[1750431530001,0.1921639,104070.0,104060.0,0.17020094]
[1750431530201,2.16052906,104070.0,104060.0,0.17100094]
[1750431530406,2.21706099,104070.0,104060.0,0.17020094]
[1750431530605,2.21706099,104070.0,104060.0,0.17060094]
[1750431530903,2.21706099,104070.0,104060.0,0.00096094]
[1750431531095,1.86769238,104070.0,104060.0,0.00136094]
[1750431531301,1.84400182,104070.0,104060.0,0.19354324]
[1750431531490,1.84400182,104070.0,104060.0,0.19654324]
[1750431531694,2.19337043,104070.0,104060.0,0.19654324]
[1750431531906,2.19337043,104070.0,104060.0,0.00436094]
[1750431532699,2.19337043,104070.0,104060.0,0.00936094]
[1750431532700,2.23547043,104070.0,104060.0,0.00936094]
[1750431533100,2.42765443,104070.0,104060.0,0.00936094]
[1750431533300,2.42765443,104070.0,104060.0,0.00896094]
[1750431533502,2.42765443,104070.0,104060.0,0.00936094]
[1750431534400,1.80610182,104070.0,104060.0,0.20154324]
[1750431534605,1.80610172,104070.0,104060.0,0.00936094]
[1750431534902,2.23587033,104070.0,104060.0,0.00936094]
[1750431535105,2.23587033,104070.0,104060.0,0.20154314]
[1750431535694,2.23587033,104070.0,104060.0,0.20114314]
[1750431535900,1.88650172,104070.0,104060.0,0.20154314]
[1750431536095,1.88650162,104070.0,104060.0,0.20154314]
[1750431536505,1.88650162,104070.0,104060.0,0.24104314]
[1750431537407,0.87383792,104070.0,104060.0,0.24104314]
[1750431537595,0.94313792,104070.0,104060.0,0.24104314]
[1750431537908,0.01863193,104070.0,104060.0,0.95091175]
[1750431538409,0.01863193,104070.0,104060.0,1.31171175]
[1750431539405,0.00026067,104070.0,104060.0,2.12843175]
[1750431539714,0.00026067,104070.0,104060.0,2.36061575]
[1750431540103,0.00026067,104070.0,104060.0,1.91843175]
[1750431540303,0.00026067,104070.0,104060.0,1.55763175]
[1750431540503,0.55322437,104070.0,104060.0,0.39154314]
[1750431540799,1.2943696,104070.0,104060.0,1.20822304]
[1750431541004,0.57066361,104070.0,104060.0,1.20822304]
[1750431541200,0.90066361,104070.0,104060.0,1.20782304]
[1750431541401,0.90066361,104070.0,104060.0,0.39114304]
[1750431541402,0.57066361,104070.0,104060.0,0.39114304]
[1750431541611,1.78373821,104070.0,104060.0,0.11896094]
[1750431541909,1.86493821,104070.0,104060.0,0.11896094]
[1750431542107,1.86493821,104070.0,104060.0,0.11936094]
[1750431542304,0.55322437,104070.0,104060.0,0.20114304]
[1750431542606,1.43693036,104070.0,104060.0,0.22248094]
[1750431542806,1.43693036,104070.0,104060.0,0.17828094]
[1750431542997,2.47597897,104070.0,104060.0,0.00936094]
[1750431543196,2.51637897,104070.0,104060.0,0.00896094]
[1750431543608,2.51637897,104070.0,104060.0,0.00936094]
[1750431543809,2.51637897,104070.0,104060.0,0.00896094]
[1750431544018,2.51637897,104070.0,104060.0,0.00936094]
[1750431544811,2.70856297,104070.0,104060.0,0.00936094]
[1750431545011,2.51637897,104070.0,104060.0,0.00936094]
[1750431545405,1.86909897,104070.0,104060.0,0.00936094]
[1750431545608,2.51633897,104070.0,104060.0,0.00936094]
[1750431546113,1.86909897,104070.0,104060.0,0.00936094]
[1750431546316,2.51629897,104070.0,104060.0,0.00936094]
[1750431547106,1.86909897,104070.0,104060.0,0.00936094]
[1750431547411,2.51633897,104070.0,104060.0,0.00936094]
[1750431548204,1.86909897,104070.0,104060.0,0.20154304]
[1750431548512,2.51625897,104070.0,104060.0,0.00936094]
[1750431549308,1.49539298,104070.0,104060.0,0.20114304]
[1750431549514,2.51621897,104070.0,104060.0,0.20154304]
[1750431549706,2.51621897,104070.0,104060.0,0.00936094]
[1750431550406,2.87550591,104070.0,104060.0,0.00936094]
[1750431550715,2.87550591,104070.0,104060.0,0.00896094]
[1750431550913,2.87550591,104070.0,104060.0,0.00936094]
[1750431551108,2.85202386,104070.0,104060.0,4e-08]
[1750431551312,0.192182,104060.0,104050.0,0.00215]
[1750431551610,1.8706566,104060.0,104050.0,0.00215]
[1750431551814,2.01508741,104060.0,104050.0,0.00215]
[1750431552205,2.66212741,104060.0,104050.0,0.00215]
[1750431552405,0.37370599,104050.0,104030.0,0.00096121]
[1750431552603,2.34393793,104040.0,104030.0,1e-08]
[1750431552818,3.15307669,104040.0,104030.0,1e-08]
[1750431553115,0.1923299,103980.0,103970.0,0.00096177]
[1750431553411,2.78719509,103980.0,103970.0,0.01434722]
[1750431553612,2.97954709,103980.0,103970.0,2e-08]
[1750431553823,0.56605439,103970.0,103960.0,0.10722382]
[1750431554013,0.56607289,103960.0,103950.0,0.0841]
[1750431554312,0.1923854,103950.0,103940.0,0.00096205]
[1750431554512,0.1923854,103950.0,103940.0,5e-08]
[1750431554513,2.58310604,103950.0,103940.0,5e-08]
[1750431554709,2.77551404,103950.0,103940.0,5e-08]
[1750431555012,2.77551404,103950.0,103940.0,0.00040005]
[1750431555212,2.58306604,103950.0,103940.0,0.00040005]
[1750431555612,1.74372064,103950.0,103940.0,0.00040005]
[1750431555813,1.74372064,103950.0,103940.0,0.19280285]
[1750431556012,1.89460594,103950.0,103940.0,0.04340005]
[1750431556316,1.89460594,103950.0,103940.0,0.00140005]
[1750431556317,1.97960594,103950.0,103940.0,0.00140005]
[1750431556612,1.43785203,103950.0,103940.0,0.19380385]
[1750431556823,0.76485203,103950.0,103940.0,0.19380385]
[1750431557111,0.88571191,103950.0,103940.0,0.40624385]
[1750431557314,1.6994179,103950.0,103940.0,0.23680385]
[1750431557517,1.0177433,103950.0,103940.0,0.16944]
[1750431557710,1.7823179,103950.0,103940.0,0.1924038]
[1750431557913,0.5363433,103950.0,103940.0,0.2364038]
[1750431558106,0.5363433,103950.0,103940.0,0.4156038]
[1750431558309,0.34924824,103950.0,103940.0,0.4156038]
[1750431558518,0.1755433,103950.0,103940.0,0.4156038]
[1750431558905,0.14719726,103950.0,103940.0,0.7764038]
[1750431559214,0.14719726,103950.0,103940.0,1.2088118]
[1750431559415,0.01479726,103950.0,103940.0,1.8940909]
[1750431559607,0.01479726,103950.0,103940.0,1.7252909]
[1750431559811,0.14519726,103960.0,103950.0,0.1923852]
[1750431560113,0.14519726,103960.0,103950.0,1.22255381]
[1750431560314,0.08409726,103960.0,103950.0,1.66494581]
[1750431560616,0.14519726,103970.0,103960.0,0.1923667]
[1750431560811,0.14519726,103970.0,103960.0,2.90973531]
[1750431561012,0.09834296,103970.0,103960.0,3.35207131]
[1750431561215,0.01771625,103980.0,103970.0,0.1923483]
[1750431561419,0.01771625,103980.0,103970.0,0.5731483]
[1750431561617,0.01771625,103980.0,103970.0,2.50078891]
[1750431561922,0.01771625,103980.0,103970.0,2.1514203]
[1750431562120,5e-08,103980.0,103970.0,2.50078891]
[1750431562326,0.001,104000.0,103990.0,0.1923113]
[1750431562511,0.001,104000.0,103990.0,2.42390918]
[1750431562714,0.001,104000.0,103990.0,2.67391788]
[1750431562914,0.001,104000.0,103990.0,2.88225717]
[1750431563420,0.001,104000.0,103990.0,2.8675479]
[1750431563618,0.001,104000.0,103990.0,2.0516279]
[1750431563822,0.002,104000.0,103990.0,2.8785079]
[1750431564223,1e-07,104000.0,103990.0,2.8785079]
[1750431564420,1e-07,104000.0,103990.0,2.53751737]
[1750431564626,1e-07,104000.0,103990.0,2.88688598]
[1750431568926,8e-08,104020.0,104010.0,0.1922744]
[1750431569227,3e-08,104040.0,104030.0,0.1922374]
[1750431569424,3e-08,104040.0,104030.0,2.12542915]
[1750431569623,3e-08,104040.0,104030.0,2.66703776]
[1750431569820,3e-08,104040.0,104030.0,2.31766915]
[1750431570021,0.0804,104050.0,104040.0,0.1922189]
[1750431570223,0.0804,104050.0,104040.0,1.27238751]
[1750431570423,0.0804,104050.0,104040.0,0.93908887]
[1750431570626,0.09786294,104050.0,104040.0,1.42440887]
[1750431570831,0.47156893,104050.0,104040.0,1.42480887]
[1750431571223,0.09786294,104050.0,104040.0,1.77417748]
[1750431571527,0.09786294,104050.0,104040.0,1.42480887]
[1750431572022,0.1921636,104070.0,104040.0,1.42480887]
[1750431572225,0.02819336,104070.0,104060.0,0.20798559]
[1750431572430,0.22035686,104070.0,104060.0,1.02322559]
[1750431572625,0.72189935,104070.0,104060.0,1.007422]
[1750431572829,1.09406285,104070.0,104060.0,1.007422]
[1750431573027,0.59626822,104070.0,104060.0,1.007422]
[1750431573634,0.60126822,104070.0,104060.0,1.008422]
[1750431573830,0.93126822,104070.0,104060.0,1.008422]
[1750431574025,1.73143683,104070.0,104060.0,0.001]
[1750431574226,1.73143683,104070.0,104040.0,0.3936]
[1750431574227,0.2882905,104060.0,104050.0,0.64632]
[1750431574433,1.50124332,104060.0,104050.0,1.0073204]
[1750431574629,1.50124332,104060.0,104050.0,0.81512]
[1750431574835,0.1922004,104050.0,104040.0,1.49566009]
[1750431575136,0.59630512,104050.0,104040.0,2.21463419]
[1750431575337,0.67480512,104050.0,104040.0,2.21463419]
[1750431575535,1.01480512,104050.0,104040.0,2.21503419]
[1750431575836,0.10889873,104050.0,104040.0,2.21503419]
[1750431576027,0.03039873,104050.0,104040.0,2.53699419]
[1750431576229,0.03039873,104050.0,104040.0,2.9505628]
[1750431576424,0.001,104050.0,104040.0,2.9505628]
[1750431576633,0.001,104050.0,104040.0,2.4065244]
[1750431576833,0.001,104050.0,104040.0,1.5590844]
[1750431577036,0.10904157,104050.0,104040.0,2.1673748]
[1750431577334,0.03034157,104050.0,104040.0,2.51630341]
[1750431577528,0.61854751,104070.0,104060.0,0.1921819]
[1750431577730,1.33259127,104070.0,104060.0,1.0070619]
[1750431577930,1.44259127,104070.0,104060.0,1.02267704]
[1750431578331,1.79195988,104070.0,104060.0,1.02263704]
[1750431578633,1.79195988,104070.0,104060.0,0.81484]
[1750431578838,0.1921819,104060.0,104050.0,0.6971272]
[1750431579134,0.67492566,104060.0,104050.0,1.5119672]
[1750431579333,1.45429427,104060.0,104050.0,1.463918]
[1750431579528,1.02429427,104060.0,104050.0,1.474318]
[1750431579729,1.16492566,104060.0,104050.0,1.473918]
[1750431579946,1.16692566,104060.0,104050.0,0.2046004]
[1750431580237,1.51629427,104060.0,104050.0,1.0189204]
[1750431580433,1.87709427,104060.0,104050.0,0.012]
[1750431580740,1.87709427,104060.0,104050.0,0.18076]
[1750431581040,1.87709427,104060.0,104050.0,0.18116]
[1750431581233,2.06930227,104060.0,104050.0,0.0124]
[1750431581431,0.1922004,104050.0,104040.0,1.1918589]
[1750431581627,1.87571277,104050.0,104040.0,0.83088]
[1750431581831,0.96554416,104050.0,104040.0,1.8377389]
[1750431582028,0.44334376,104050.0,104040.0,2.3785389]
[1750431582341,1.12554416,104050.0,104040.0,1.2034989]
[1750431582532,1.92571277,104050.0,104040.0,1.8380989]
[1750431582733,1.34871277,104050.0,104040.0,1.8386989]
[1750431582930,1.75871277,104050.0,104040.0,0.83228]
[1750431583126,1.40934416,104050.0,104040.0,1.00104]
[1750431583331,1.75671277,104050.0,104040.0,1.64544]
[1750431583527,1.75671277,104050.0,104040.0,1.64784]
[1750431583938,1.75671277,104050.0,104040.0,0.83328]
[1750431584138,1.75671277,104050.0,104040.0,1.00204]
[1750431584340,1.75671277,104050.0,104040.0,0.83288]
[1750431584539,1.44854416,104050.0,104040.0,0.83328]
[1750431584737,1.79791277,104050.0,104040.0,1.00204]
[1750431584941,1.80091277,104050.0,104040.0,1.00104]
[1750431585137,1.80191277,104050.0,104040.0,1.00104]
[1750431585342,1.80191277,104050.0,104040.0,1.1932589]
[1750431586341,1.80191277,104050.0,104040.0,0.0014]
[1750431586935,1.80191277,104050.0,104040.0,0.1936189]
[1750431586936,1.89191277,104050.0,104040.0,0.1936189]
[1750431587137,1.89191277,104050.0,104040.0,0.17016]
[1750431587338,1.89191277,104050.0,104040.0,0.0014]
[1750431587638,1.9070271,104050.0,104040.0,0.17016]
[1750431587844,1.9070271,104050.0,104040.0,0.16976]
[1750431588037,1.7148031,104050.0,104040.0,0.17016]
[1750431588234,1.7706371,104050.0,104040.0,0.17016]
[1750431588436,2.4161971,104050.0,104040.0,0.17016]
[1750431588636,0.1922373,104030.0,104020.0,0.1930531]
[1750431588839,2.1869119,104030.0,104020.0,0.3610531]
[1750431589034,2.4183759,104030.0,104020.0,0.0008]
[1750431589235,0.1922558,104020.0,104010.0,0.42419513]